bitfinex/quotes_SOLUSD_20250522
["timestamp","ask_amount","ask_price","bid_price","bid_amount"]
[1747905363487,19.44768571,179.97,179.93,26.0]
[1747905364173,40.96465482,179.97,179.91,59.32]
[1747905364375,40.96465482,179.97,179.91,26.0]
[1747905364981,21.51696911,179.96,179.87,83.0]
[1747905365285,21.51696911,179.93,179.85,41.0]
[1747905365589,5.55802578,179.92,179.86,33.32]
[1747905365764,5.55802578,179.92,179.89,26.0]
[1747905367400,40.97005936,179.92,179.87,26.0]
[1747905367902,19.45309025,179.92,179.85,41.0]
[1747905368405,5.5576917,179.94,179.89,26.0]
[1747905368704,5.5576917,179.94,179.89,59.32]
[1747905369104,5.55648163,179.97,179.89,59.32]
[1747905370084,5.55648163,179.97,179.89,64.87893272]
[1747905370721,5.55586421,179.99,179.93,26.0]
[1747905371010,5.55586421,179.99,179.94,33.32]
[1747905371617,5.55555555,180.0,179.94,33.32]
[1747905372318,21.51696911,179.98,179.94,33.32]
[1747905372614,21.51696911,179.97,179.9,3.12236056]
[1747905372821,21.51696911,179.97,179.89,59.32]
[1747905373111,19.44444443,180.0,179.89,33.32]
[1747905373293,21.51696911,179.96,179.9,26.0]
[1747905373494,5.55679039,179.96,179.9,26.0]
[1747905374021,27.07252466,180.0,179.9,31.55851571]
[1747905374227,40.96141354,180.0,179.91,3.12214959]
[1747905374826,40.96141354,180.0,179.92,26.0]
[1747905375029,5.55555555,180.0,179.94,26.0]
[1747905375233,5.55555555,180.0,179.95,26.0]
[1747905375617,5.55493834,180.02,179.95,26.0]
[1747905376623,21.51696911,180.0,179.94,33.32]
[1747905376821,21.51696911,179.98,179.94,33.32]
[1747905377042,21.51696911,179.97,179.9,59.32]
[1747905377833,21.51696911,179.97,179.9,33.32]
[1747905378042,47.21697589,180.02,179.9,33.32]
[1747905378333,18.64964886,180.01,179.9,59.32]
[1747905378535,21.51696911,179.96,179.86,46.88351701]
[1747905378837,21.51696911,179.96,179.85,33.32]
[1747905378838,6.3956,179.95,179.85,33.32]
[1747905379012,21.51696911,179.92,179.85,59.32]
[1747905379540,21.51696911,179.92,179.85,33.32]
[1747905379833,5.55833472,179.91,179.85,59.32]
[1747905380041,5.55740802,179.94,179.88,26.0]
[1747905380539,19.44587396,179.99,179.92,26.0]
[1747905380739,19.44587396,179.99,179.92,59.32]
[1747905381629,5.55555555,180.0,179.92,59.32]
[1747905381832,5.55555555,180.0,179.96,26.0]
[1747905383858,19.44259237,180.02,179.93,18.64964886]
[1747905385163,19.44259237,180.02,179.91,27.6436]
[1747905385164,21.51696911,180.01,179.91,1.6436]
[1747905385342,21.51696911,179.96,179.89,33.32]
[1747905385639,21.51696911,179.95,179.92,3.13448674]
[1747905386359,5.55586421,179.99,179.92,3.13448674]
[1747905386824,27.07283332,179.99,179.92,3.13448674]
[1747905387023,27.07283332,179.99,179.9,26.0]
[1747905387226,40.96249385,179.99,179.9,26.0]
[1747905387415,40.96249385,179.99,179.85,6.1897]
[1747905387416,21.51696911,179.97,179.85,6.1897]
[1747905387626,21.51696911,179.92,179.82,1.5414]
[1747905387842,21.51696911,179.91,179.82,34.8614]
[1747905388047,21.51696911,179.92,179.83,33.80821399]
[1747905388256,5.55833472,179.91,179.83,33.80821399]
[1747905388446,5.55833472,179.91,179.84,3.14314266]
[1747905388618,19.45417152,179.91,179.84,3.14314266]
[1747905389666,19.45417152,179.91,179.85,3.14314266]
[1747905390460,21.51696911,179.92,179.85,3.14314266]
[1747905391242,21.51696911,179.91,179.85,29.14314266]
[1747905391431,21.51696911,179.91,179.86,3.14314266]
[1747905392367,5.55864369,179.9,179.86,3.14314266]
[1747905392571,19.45525291,179.9,179.87,3.14314266]
[1747905392745,21.51696911,179.89,179.87,3.14314266]
[1747905393064,21.51696911,179.88,179.87,3.14314266]
[1747905393438,29.42536911,179.88,179.87,3.14314266]
[1747905393848,48.07501797,179.88,179.87,3.14314266]
[1747905394362,19.4584978,179.87,179.76,66.86]
[1747905394534,21.51696911,179.83,179.76,66.86]
[1747905394956,19.4584978,179.87,179.76,40.86]
[1747905395158,21.51696911,179.83,179.76,66.86]
[1747905395359,21.51696911,179.82,179.76,66.86]
[1747905395668,21.51696911,179.81,179.72,18.64964886]
[1747905395858,26.0,179.84,179.73,3.14047711]
[1747905396043,21.51696911,179.82,179.73,3.14047711]
[1747905396665,5.56142594,179.81,179.73,3.14047711]
[1747905397044,5.56142594,179.81,179.74,18.64964886]
[1747905398467,5.56142594,179.81,179.74,33.34]
[1747905398967,5.56142594,179.81,179.74,59.34]
[1747905399271,21.51696911,179.83,179.74,59.34]
[1747905399566,5.56049822,179.84,179.75,18.64964886]
[1747905400370,27.07746733,179.84,179.75,24.21272248]
[1747905400752,13.44751688,179.93,179.82,26.0]
[1747905400976,5.55747746,179.94,179.86,26.0]
[1747905401472,5.55747746,179.94,179.86,25.7]
[1747905401667,5.55713672,179.95,179.87,18.64964886]
[1747905401872,5.55648163,179.97,179.89,18.64964886]
[1747905402458,19.44367296,180.01,179.89,18.64964886]
[1747905402756,19.44367296,180.01,179.89,24.20855656]
[1747905403151,40.96064207,180.01,179.89,24.20855656]
[1747905403354,19.44367296,180.01,179.94,26.0]
[1747905403571,19.44367296,180.01,179.94,59.34]
[1747905403768,40.96064207,180.01,179.94,59.34]
[1747905403981,19.44367296,180.01,179.94,59.34]
[1747905404184,40.96064207,180.01,179.94,59.34]
[1747905404373,5.55586421,179.99,179.94,59.34]
[1747905406496,5.55524693,180.01,179.94,59.34]
[1747905406873,19.44336425,180.01,179.94,59.34]
[1747905407491,5.55432126,180.04,179.98,26.0]
[1747905407667,5.55432126,180.04,179.99,33.34]
[1747905408488,5.55370432,180.06,179.99,33.34]
[1747905408991,5.55216256,180.11,180.03,26.0]
[1747905409195,5.55216256,180.11,180.04,51.98964886]
[1747905409680,5.55123792,180.14,180.07,26.0]
[1747905410375,21.51696911,180.12,180.04,33.34]
[1747905410708,5.55308751,180.08,180.04,33.32]
[1747905410872,5.55247084,180.1,180.04,33.32]
[1747905411073,5.55247084,180.1,180.07,26.0]
[1747905411382,27.06943995,180.1,180.03,59.32]
[1747905411777,40.95061707,180.1,180.03,59.32]
[1747905414326,21.51696911,180.06,180.01,33.32]
[1747905415017,47.1960022,180.1,180.01,33.32]
[1747905415185,21.51696911,180.06,180.01,33.32]
[1747905415516,21.51696911,180.07,180.01,33.32]
[1747905415805,47.1960022,180.1,180.01,33.32]
[1747905415806,21.51696911,180.06,180.01,33.32]
[1747905416176,21.51696911,180.09,180.01,33.32]
[1747905416376,21.51696911,180.08,180.01,33.32]
[1747905416798,13.88117712,180.1,180.01,33.32]
[1747905417081,21.51696911,180.08,180.01,33.32]
[1747905417795,13.88117712,180.1,180.01,33.32]
[1747905418102,5.5533959,180.07,180.01,33.32]
[1747905418905,27.07036501,180.07,180.01,33.32]
[1747905419116,21.51696911,180.05,180.01,26.0]
[1747905419301,19.43688565,180.07,180.0,59.32]
[1747905419506,21.51696911,180.05,180.0,59.32]
[1747905420415,5.55432126,180.04,180.0,59.32]
[1747905421115,19.44012441,180.04,179.93,83.0]
[1747905421313,19.44012441,180.04,179.92,40.84]
[1747905421513,21.51696911,179.96,179.87,53.91051178]
[1747905421690,21.51696911,179.96,179.87,42.3478]
[1747905422021,21.51696911,179.94,179.88,33.32]
[1747905422220,6.0544,179.97,179.91,26.0]
[1747905422389,19.44228419,180.02,179.91,26.0]
[1747905422903,21.51696911,180.01,179.92,18.64964886]
[1747905423116,21.51696911,180.0,179.93,33.32]
[1747905423326,21.51696911,179.99,179.93,33.32]
[1747905424000,19.44228419,180.02,179.89,5.55869713]
[1747905424001,21.51696911,179.95,179.89,33.32]
[1747905424192,21.51696911,179.91,179.86,7.80821399]
[1747905424385,5.55895269,179.89,179.86,33.80821399]
[1747905424587,5.55895269,179.89,179.86,7.80821399]
[1747905424789,5.55895269,179.89,179.86,33.80821399]
[1747905425016,5.55895269,179.89,179.86,26.0]
[1747905425493,5.55895269,179.89,179.85,33.32]
[1747905426117,5.55895269,179.89,179.85,59.32]
[1747905426490,5.55864369,179.9,179.85,59.32]
[1747905426693,21.51696911,179.89,179.85,59.32]
[1747905426920,21.51696911,179.88,179.82,33.32]
[1747905427119,21.51696911,179.86,179.82,33.32]
[1747905427417,19.45525291,179.9,179.82,33.32]
[1747905427418,21.51696911,179.89,179.82,33.32]
[1747905427828,21.51696911,179.88,179.82,33.32]
[1747905428423,5.5595708,179.87,179.82,33.32]
[1747905429119,5.55802578,179.92,179.82,33.32]
[1747905429308,21.51696911,179.9,179.82,33.32]
[1747905429494,21.51696911,179.89,179.82,33.32]
[1747905429702,21.51696911,179.88,179.82,33.32]
[1747905430522,5.5595708,179.87,179.82,33.32]
[1747905431834,45.45309025,179.92,179.82,33.32]
[1747905432006,19.45309025,179.92,179.82,33.32]
[1747905432213,21.51696911,179.89,179.82,33.32]
[1747905432404,21.51696911,179.9,179.82,33.32]
[1747905433026,19.45309025,179.92,179.83,18.64964886]
[1747905433229,5.55802578,179.92,179.84,26.0]
[1747905433532,5.55802578,179.92,179.85,26.0]
[1747905434121,5.55802578,179.92,179.85,31.56015586]
[1747905434334,5.55679039,179.96,179.88,26.0]
[1747905434630,5.55679039,179.96,179.89,51.98964886]
[1747905434833,5.55679039,179.96,179.92,26.0]
[1747905435818,6.2515,180.02,179.93,18.64964886]
[1747905436135,5.55462978,180.03,179.94,33.34]
[1747905436349,21.51696911,180.01,179.94,33.34]
[1747905436525,21.51696911,180.01,179.9,5.55858416]
[1747905436526,21.51696911,179.98,179.93,59.34]
[1747905436710,21.51696911,179.96,179.93,33.34]
[1747905438447,21.51696911,179.95,179.93,33.34]
[1747905438748,21.51696911,179.94,179.89,33.32]
[1747905438946,21.51696911,179.93,179.89,33.32]
[1747905439126,21.51696911,179.91,179.87,33.32]
[1747905439314,21.51696911,179.9,179.87,33.32]
[1747905440219,5.55833472,179.91,179.87,33.32]
[1747905440826,5.55833472,179.91,179.87,59.32]
[1747905441752,5.55679039,179.96,179.91,26.0]
[1747905441949,5.55679039,179.96,179.92,33.34]
[1747905442324,5.5561729,179.98,179.92,33.34]
[1747905442524,21.51696911,179.96,179.92,33.34]
[1747905442827,21.51696911,179.94,179.92,33.34]
[1747905443225,21.51696911,179.93,179.87,33.34]
[1747905443431,21.51696911,179.9,179.83,40.82]
[1747905443637,31.55673066,179.9,179.85,33.34]
[1747905444345,5.55895269,179.89,179.85,33.34]
[1747905444735,37.11444754,179.93,179.85,33.34]
[1747905444943,31.55673066,179.92,179.85,33.34]
[1747905445346,31.55673066,179.91,179.85,33.34]
[1747905446420,5.55864369,179.9,179.85,33.34]
[1747905446624,5.55864369,179.9,179.83,40.82]
[1747905446625,31.55673066,179.88,179.84,33.34]
[1747905446842,19.45525291,179.9,179.84,33.34]
[1747905447049,51.01198357,179.9,179.84,33.34]
[1747905447249,5.55864369,179.9,179.84,33.34]
[1747905447824,5.55864369,179.9,179.85,26.0]
[1747905448053,5.55709919,179.95,179.86,18.64964886]
[1747905448354,45.44681505,179.99,179.9,24.20827191]
[1747905448656,5.55524693,180.01,179.94,26.0]
[1747905448838,37.11197759,180.01,179.94,26.0]
[1747905449060,31.55673066,180.0,179.94,26.0]
[1747905449246,31.55673066,179.99,179.94,26.0]
[1747905450782,31.55673066,179.97,179.87,84.5461]
[1747905451074,19.44660517,179.98,179.9,40.82]
[1747905451075,31.55673066,179.96,179.9,40.82]
[1747905451446,31.55673066,179.97,179.91,33.34]
[1747905452668,5.55679039,179.96,179.91,33.34]
[1747905452874,51.00549704,179.96,179.91,33.34]
[1747905453170,37.11352105,179.96,179.91,33.34]
[1747905453383,5.55679039,179.96,179.91,33.34]
[1747905454868,31.55673066,179.95,179.9,40.82]
[1747905455043,5.55679039,179.96,179.9,74.16]
[1747905455243,5.55679039,179.96,179.93,26.0]
[1747905455565,31.55673066,180.02,179.93,26.0]
[1747905455761,31.55673066,180.01,179.93,26.0]
[1747905456663,31.55673066,179.99,179.92,83.0]
[1747905456861,31.55673066,179.98,179.95,26.0]
[1747905457595,31.55673066,179.98,179.93,26.0]
[1747905457903,31.55673066,179.95,179.91,26.0]
[1747905458273,31.55673066,179.93,179.89,33.32]
[1747905458472,1.5521,179.98,179.89,33.32]
[1747905458668,5.55709919,179.95,179.92,26.0]
[1747905459091,5.55648163,179.97,179.92,26.0]
[1747905459485,37.11321229,179.97,179.92,26.0]
[1747905459790,5.55648163,179.97,179.92,26.0]
[1747905460893,51.00441637,179.97,179.92,26.0]
[1747905462672,5.55648163,179.97,179.92,26.0]
[1747905464203,5.55555555,180.0,179.96,26.0]
[1747905464400,5.55555555,180.0,179.96,59.32]
[1747905464639,5.55432126,180.04,180.0,26.0]
[1747905465011,31.55673066,180.02,180.01,33.32]
[1747905465409,31.55673066,180.02,179.97,33.32]
[1747905465635,5.55432126,180.04,179.97,33.32]
[1747905465636,19.44012441,180.04,179.97,33.32]
[1747905465811,21.57226668,180.01,179.97,33.32]
[1747905466121,5.55432126,180.04,180.0,26.0]
[1747905466714,21.57226668,180.05,180.01,26.0]
[1747905466919,21.57226668,180.05,180.0,26.0]
[1747905467116,21.57226668,180.06,180.0,26.0]
[1747905467312,21.57226668,180.05,180.0,26.0]
[1747905468249,5.55432126,180.04,180.0,26.0]
[1747905468449,5.55432126,180.04,179.98,26.0]
[1747905468647,21.57226668,180.03,179.98,26.0]
[1747905469229,41.01239109,180.04,179.99,33.32]
[1747905469547,21.57226668,180.02,179.99,33.32]
[1747905469850,21.57226668,180.0,179.92,41.18]
[1747905470031,21.57226668,179.97,179.93,33.32]
[1747905470233,21.57226668,179.94,179.9,7.80821399]
[1747905470545,21.57226668,179.93,179.9,7.80821399]
[1747905471326,21.57226668,179.92,179.89,33.32]
[1747905471644,31.54740327,179.92,179.89,33.32]
[1747905472143,31.54740327,179.93,179.89,33.32]
[1747905472330,37.10481129,179.94,179.89,33.32]
[1747905473059,5.55740802,179.94,179.89,33.32]
[1747905473359,5.55648163,179.97,179.9,18.64964886]
[1747905473565,5.55648163,179.97,179.93,26.0]
[1747905473734,5.55648163,179.97,179.94,33.32]
[1747905474133,13.88857134,180.01,179.94,33.32]
[1747905474349,45.43597461,180.01,179.94,33.32]
[1747905474661,5.55555555,180.0,179.94,33.32]
[1747905475770,37.10295882,180.0,179.94,33.32]
[1747905478167,5.55555555,180.0,179.97,26.0]
[1747905478373,5.55555555,180.0,179.98,33.32]
[1747905478552,5.55493834,180.02,179.98,33.32]
[1747905478754,5.55401277,180.05,179.98,33.32]
[1747905479106,5.55401277,180.05,179.99,18.64964886]
[1747905479448,5.55401277,180.05,180.0,26.0]
[1747905479646,5.55401277,180.05,180.0,29.14019161]
[1747905479847,5.55370432,180.06,180.0,29.14019161]
[1747905480168,5.55370432,180.06,180.0,3.14019161]
[1747905480348,5.55247084,180.1,180.02,26.0]
[1747905480545,31.54740327,180.14,180.06,26.0]
[1747905480864,5.55092978,180.15,180.07,33.32]
[1747905481060,5.55067576,180.16,180.09,26.0]
[1747905481370,46.92700789,180.21,180.1,26.0]
[1747905481582,13.87310462,180.21,180.11,26.0]
[1747905481750,5.54877372,180.22,180.12,57.5214733]
[1747905481945,19.42070802,180.22,180.12,51.96964886]
[1747905482380,5.54877372,180.22,180.15,26.0]
[1747905482676,5.546927,180.28,180.19,26.0]
[1747905482882,5.546927,180.28,180.2,51.96964886]
[1747905483461,19.4142445,180.28,180.2,33.32]
[1747905483778,19.41855303,180.24,180.16,33.32]
[1747905484108,31.54740327,180.2,180.15,33.32]
[1747905484264,19.41855303,180.24,180.15,33.32]
[1747905484455,19.41855303,180.24,180.16,26.0]
[1747905484654,31.54740327,180.23,180.16,26.0]
[1747905484968,31.54740327,180.21,180.16,26.0]
[1747905485487,37.09556128,180.24,180.18,26.0]
[1747905485670,5.54815801,180.24,180.18,26.0]
[1747905485859,37.09556128,180.24,180.18,26.0]
[1747905486782,50.9659563,180.24,180.17,26.0]
[1747905486991,31.54740327,180.21,180.17,59.3]
[1747905487360,19.41855303,180.24,180.17,59.3]
[1747905487662,50.9659563,180.24,180.17,59.3]
[1747905487872,31.54740327,180.24,180.17,59.3]
[1747905488494,31.54740327,180.2,180.17,59.3]
[1747905488688,31.54740327,180.21,180.17,59.3]
[1747905488894,31.54740327,180.22,180.17,59.3]
[1747905489891,41.60195251,180.28,180.17,59.3]
[1747905490070,31.54740327,180.25,180.17,59.3]
[1747905490260,31.54740327,180.24,180.17,59.3]
[1747905490867,31.54740327,180.27,180.17,59.3]
[1747905491069,13.8673175,180.28,180.17,59.3]
[1747905491490,31.54740327,180.26,180.17,59.3]
[1747905491664,13.8673175,180.28,180.18,18.64964886]
[1747905491871,5.54754243,180.26,180.18,18.64964886]
[1747905492278,37.0949457,180.26,180.18,18.64964886]
[1747905492476,5.54754243,180.26,180.17,59.3]
[1747905492785,31.54740327,180.25,180.17,59.3]
[1747905493589,5.54815801,180.24,180.17,59.3]
[1747905494496,5.54815801,180.24,180.18,33.28]
[1747905494793,37.09556128,180.24,180.18,33.28]
[1747905495609,5.54908162,180.21,180.14,60.88964886]
[1747905495897,5.5460041,180.31,180.19,26.0]
[1747905496083,31.54740327,180.27,180.19,26.0]
[1747905496394,31.54740327,180.25,180.2,26.0]
[1747905496807,5.54846584,180.23,180.2,26.0]
[1747905497173,26.0,180.32,180.21,26.0]
[1747905497370,26.0,180.32,180.22,33.28]
[1747905497371,31.54740327,180.25,180.22,33.28]
[1747905497571,31.54740327,180.23,180.2,26.0]
[1747905497771,18.64964886,180.3,180.18,33.28]
[1747905497977,21.5201186,180.22,180.18,59.28]
[1747905498181,21.5201186,180.21,180.18,33.28]
[1747905498376,21.5201186,180.23,180.18,59.28]
[1747905498604,21.5201186,180.21,180.18,59.28]
[1747905498812,27.06981614,180.19,180.18,33.28]
[1747905499189,19.42394139,180.19,180.14,42.24]
[1747905499394,19.42394139,180.19,180.14,75.52]
[1747905499395,21.5201186,180.18,180.14,75.52]
[1747905499796,5.54969754,180.19,180.14,75.52]
[1747905500009,5.54969754,180.19,180.17,26.0]
[1747905500395,5.54969754,180.19,180.14,101.52]
[1747905501085,5.54908162,180.21,180.14,101.52]
[1747905501293,27.06920022,180.21,180.14,101.52]
[1747905501606,21.5201186,180.19,180.14,42.24]
[1747905501811,21.5201186,180.17,180.14,42.24]
[1747905502000,21.5201186,180.17,180.14,101.52]
[1747905502390,21.5201186,180.18,180.14,101.52]
[1747905502608,19.42178568,180.21,180.14,101.52]
[1747905502979,19.41747572,180.25,180.14,101.52]
[1747905503405,21.5201186,180.2,180.14,101.52]
[1747905503809,47.15672676,180.25,180.14,101.52]
[1747905504009,21.5201186,180.21,180.14,101.52]
[1747905504211,19.41747572,180.25,180.17,26.0]
[1747905504506,21.5201186,180.23,180.17,26.0]
[1747905505014,21.5201186,180.22,180.17,26.0]
[1747905505511,13.87039502,180.24,180.17,26.0]
[1747905505707,21.5201186,180.21,180.17,26.0]
[1747905506081,21.5201186,180.18,180.15,26.0]
[1747905506623,13.87039502,180.24,180.15,26.0]
[1747905506811,21.5201186,180.22,180.15,26.0]
[1747905507010,21.5201186,180.21,180.15,26.0]
[1747905507196,13.87039502,180.24,180.15,26.0]
[1747905507197,21.5201186,180.19,180.15,26.0]
[1747905507395,27.07043219,180.17,180.14,42.24]
[1747905507711,21.5201186,180.15,180.13,33.28]
[1747905508083,21.5201186,180.14,180.07,46.4]
[1747905508319,21.5201186,180.1,180.08,33.28]
[1747905508616,47.17766553,180.17,180.08,33.28]
[1747905508821,47.17766553,180.17,180.08,59.28]
[1747905509200,21.5201186,180.11,180.08,59.28]
[1747905509400,27.07289776,180.09,180.08,33.28]
[1747905509603,5.55277916,180.09,180.08,33.28]
[1747905509809,37.03753804,180.09,180.08,33.28]
[1747905510513,50.91948595,180.09,180.04,26.0]
[1747905510716,31.48475888,180.05,180.04,33.28]
[1747905510921,31.48475888,180.05,180.01,46.4]
[1747905511118,31.48475888,180.03,180.01,79.68]
[1747905511413,19.43472707,180.09,179.92,2.82026176]
[1747905511414,5.55524693,180.01,179.96,33.28]
[1747905511598,31.48475888,180.0,179.96,33.28]
[1747905511797,5.55524693,180.01,179.96,59.28]
[1747905511798,31.48475888,180.01,179.96,59.28]
[1747905511995,31.48475888,179.98,179.96,59.28]
[1747905512329,18.64964886,180.05,179.94,46.4]
[1747905512510,31.48475888,179.97,179.96,26.0]
[1747905512687,31.48475888,179.97,179.94,46.4]
[1747905512894,18.64964886,180.05,179.96,26.0]
[1747905513093,31.48475888,179.97,179.94,46.4]
[1747905513296,80.48648672,180.06,179.92,33.28]
[1747905513519,19.44012441,180.04,179.92,59.28]
[1747905513801,31.48475888,179.97,179.92,33.28]
[1747905514007,31.48475888,179.97,179.93,26.0]
[1747905514507,31.48475888,179.97,179.92,33.28]
[1747905515309,31.48475888,179.97,179.93,26.0]
[1747905515514,13.88997579,179.99,179.93,26.0]
[1747905515716,31.48475888,179.97,179.93,26.0]
[1747905516133,19.44256541,180.02,179.93,26.0]
[1747905516328,31.48475888,179.95,179.93,26.0]
[1747905516644,31.48475888,179.94,179.93,26.0]
[1747905517119,31.48475888,179.94,179.89,33.3]
[1747905517425,37.04310533,179.91,179.89,33.3]
[1747905517726,5.55524693,180.01,179.92,26.0]
[1747905518332,31.48475888,180.0,179.92,26.0]
[1747905518819,31.48475888,179.99,179.92,26.0]
[1747905519019,31.48475888,180.0,179.94,26.0]
[1747905519198,31.48475888,180.01,179.95,33.32]
[1747905519619,31.48475888,180.01,179.96,5.55679039]
[1747905519923,31.48475888,180.02,179.97,26.0]
[1747905520301,5.5533959,180.07,179.99,26.0]
[1747905520523,31.48475888,180.05,179.99,26.0]
[1747905520721,31.48475888,180.05,180.0,33.32]
[1747905521022,5.5533959,180.07,180.0,33.32]
[1747905521210,20.15483685,180.08,180.0,33.32]
[1747905521407,31.48475888,180.05,180.0,33.32]
[1747905521623,31.48475888,180.04,180.0,33.32]
[1747905521920,5.5533959,180.07,180.0,33.32]
[1747905522121,31.48475888,180.05,180.0,33.32]
[1747905522325,31.48475888,180.03,180.0,33.32]
[1747905522928,19.43688565,180.07,179.98,59.32]
[1747905523107,31.48475888,180.05,179.98,59.32]
[1747905523629,5.5533959,180.07,179.99,5.55586421]
[1747905523925,31.48475888,180.05,179.99,5.55586421]
[1747905524219,5.5533959,180.07,179.99,5.55586421]
[1747905524424,31.48475888,180.05,179.99,5.55586421]
[1747905525534,31.48475888,180.05,180.0,33.32]
[1747905525734,31.48475888,180.07,180.01,26.0]
[1747905526024,14.60169142,180.08,180.03,26.0]
[1747905526795,20.15495323,180.08,180.03,26.0]
[1747905527232,31.48475888,180.05,179.98,26.0]
[1747905527431,31.48475888,180.03,180.0,33.32]
[1747905527731,31.48475888,180.03,179.96,46.44]
[1747905527905,31.48475888,180.01,179.97,33.3]
[1747905528311,31.48475888,180.01,179.98,26.0]
[1747905528510,18.64964886,180.07,179.91,7.11945279]
[1747905528511,31.48475888,179.99,179.91,7.11945279]
[1747905528724,31.48475888,179.99,179.9,154.17284886]
[1747905528725,31.48475888,179.98,179.94,26.0]
[1747905528926,5.55648163,179.97,179.94,26.0]
[1747905529111,31.48475888,180.0,179.93,38.85769918]
[1747905529825,31.48475888,179.99,179.94,26.0]
[1747905530010,19.44120423,180.03,179.94,26.0]
[1747905530205,31.48475888,179.99,179.93,33.3]
[1747905530413,31.48475888,179.99,179.93,59.3]
[1747905531035,5.5561729,179.98,179.93,33.3]
[1747905531328,5.5561729,179.98,179.93,59.3]
[1747905531901,27.13235298,179.99,179.93,64.85759862]
[1747905532105,5.55592021,179.99,179.93,59.3]
[1747905532334,27.13235298,179.99,179.93,59.3]
[1747905532546,5.55592021,179.99,179.93,59.3]
[1747905532826,13.88602167,180.04,179.96,26.0]
[1747905533133,21.57643277,180.03,179.96,31.55674046]
[1747905533838,21.57643277,179.97,179.92,33.32]
[1747905534514,21.57643277,179.97,179.93,26.0]
[1747905535542,5.55657669,179.97,179.93,26.0]
[1747905536226,31.52791335,179.99,179.93,26.0]
[1747905536741,31.52791335,179.99,179.93,31.5576195]
[1747905536947,5.55532975,180.01,179.93,31.5576195]
[1747905537238,31.52791335,180.02,179.93,31.5576195]
[1747905538339,31.52791335,180.03,179.97,26.0]
[1747905538521,31.52791335,180.02,179.97,59.32]
[1747905538715,5.55524693,180.01,179.97,59.32]
[1747905540134,31.52791335,180.02,179.97,59.32]
[1747905540841,5.55524693,180.01,179.97,59.32]
[1747905541543,37.08316028,180.01,179.97,59.32]
[1747905541729,31.52791335,179.99,179.97,26.0]
[1747905542845,5.55648163,179.97,179.95,59.32]
[1747905543233,5.55621409,179.98,179.95,59.32]
[1747905545043,5.55586421,179.99,179.95,59.32]
[1747905546946,31.52791335,180.02,179.95,59.32]
[1747905547241,31.52791335,180.03,179.95,64.87699974]
[1747905547536,31.52791335,180.03,179.98,26.0]
[1747905548130,31.52791335,180.04,179.98,26.0]
[1747905548642,31.52791335,180.03,179.98,26.0]
[1747905549249,5.55370432,180.06,179.99,33.32]
[1747905549434,31.52791335,180.05,180.0,33.32]
[1747905549828,31.52791335,180.02,179.97,109.0]
[1747905550024,31.52791335,180.02,179.97,59.32]
[1747905550219,31.52791335,180.03,179.97,33.32]
[1747905550454,19.43796512,180.06,179.97,33.32]
[1747905550773,31.52791335,180.05,179.97,33.32]
[1747905551156,19.43796512,180.06,179.98,5.5561729]
[1747905551541,5.55370432,180.06,179.98,5.5561729]
[1747905551778,13.8823689,180.09,179.98,5.5561729]
[1747905551779,5.55280978,180.09,180.02,26.0]
[1747905551953,5.55280978,180.09,180.03,33.32]
[1747905552269,5.55282403,180.09,180.03,33.32]
[1747905552571,13.87999159,180.12,180.03,33.32]
[1747905552868,31.52791335,180.14,180.03,33.32]
[1747905553072,31.52791335,180.11,180.03,33.32]
[1747905553255,37.08038419,180.1,180.03,33.32]
[1747905553564,5.55247084,180.1,180.03,33.32]
[1747905553769,37.08038419,180.1,180.04,3.13042428]
[1747905554198,5.55247084,180.1,180.04,3.13042428]
[1747905554382,5.5515461,180.13,180.04,3.13042428]
[1747905554560,5.5515461,180.13,180.04,21.78007314]
[1747905555060,5.5515461,180.13,180.05,44.64964886]